bitfinex/quotes_BTCUSD_20250115
["timestamp","ask_amount","ask_price","bid_price","bid_amount"]
[1736918967640,0.0487,97116.0,97112.0,0.02143494]
[1736918968832,0.0487,97116.0,97113.0,0.210945]
[1736918969247,0.0487,97116.0,97113.0,0.205945]
[1736918970380,0.0487,97116.0,97113.0,0.208945]
[1736918971828,0.0766,97119.0,97113.0,0.208945]
[1736918972031,0.0766,97119.0,97113.0,0.213945]
[1736918972390,0.0766,97119.0,97113.0,0.008]
[1736918990625,0.1,97123.0,97113.0,0.008]
[1736918990626,0.22618443,97114.0,97113.0,0.008]
[1736918990812,0.22606049,97114.0,97113.0,0.008]
[1736918991215,0.24906049,97114.0,97113.0,0.008]
[1736918992041,0.24906049,97114.0,97113.0,0.003]
[1736918992296,0.25006049,97114.0,97113.0,0.003]
[1736918992508,0.0783,97113.0,97110.0,0.00179025]
[1736918992716,0.17176049,97114.0,97110.0,0.00179025]
[1736918992717,0.0009925,97112.0,97110.0,0.00179025]
[1736918992914,0.0783,97111.0,97110.0,0.00179025]
[1736918993356,0.2013,97111.0,97110.0,0.00179025]
[1736918993593,0.2473925,97111.0,97110.0,0.00179025]
[1736918993825,0.2473925,97111.0,97110.0,0.00279025]
[1736918994183,0.2473925,97111.0,97110.0,0.00179025]
[1736918994391,0.4533415,97111.0,97110.0,0.00179025]
[1736918995658,0.4533415,97111.0,97110.0,0.00279025]
[1736918996069,0.47048969,97111.0,97110.0,0.00179025]
[1736918996385,0.47148969,97111.0,97110.0,0.00179025]
[1736918999141,0.4553415,97111.0,97110.0,0.00179025]
[1736919001894,0.52163645,97111.0,97110.0,0.00179025]
[1736919002061,0.4553415,97111.0,97110.0,0.00179025]
[1736919002518,0.47148967,97111.0,97110.0,0.00179025]
[1736919003105,0.4553415,97111.0,97110.0,0.00179025]
[1736919007217,0.47148942,97111.0,97110.0,0.00179025]
[1736919009023,0.53939916,97111.0,97110.0,0.00179025]
[1736919009279,0.52325124,97111.0,97110.0,0.00179025]
[1736919009585,0.4553415,97111.0,97110.0,0.00179025]
[1736919012564,0.4714892,97111.0,97110.0,0.00179025]
[1736919012963,0.4553415,97111.0,97110.0,0.00179025]
[1736919016161,0.47148895,97111.0,97110.0,0.00179025]
[1736919019107,0.44848895,97111.0,97110.0,0.00179025]
[1736919023153,0.4997503,97111.0,97110.0,0.00179025]
[1736919023432,0.5227503,97111.0,97110.0,0.00179025]
[1736919023635,0.72571587,97111.0,97110.0,0.00179025]
[1736919023762,0.70956842,97111.0,97110.0,0.00179025]
[1736919024601,0.72137276,97111.0,97110.0,0.00179025]
[1736919024994,1.06123795,97111.0,97110.0,0.00179025]
[1736919025400,1.05923795,97111.0,97110.0,0.00179025]
[1736919025607,1.06023795,97111.0,97110.0,0.00179025]
[1736919025810,1.06523795,97111.0,97110.0,0.00279025]
[1736919026207,1.06423795,97111.0,97110.0,0.00279025]
[1736919026403,1.06523795,97111.0,97110.0,0.00279025]
[1736919026695,1.06023795,97111.0,97110.0,0.00179025]
[1736919026866,0.205998,97088.0,97074.0,0.19481623]
[1736919027044,0.205998,97088.0,97074.0,0.19496492]
[1736919029572,0.207998,97088.0,97074.0,0.19496492]
[1736919032768,0.002,97088.0,97079.0,0.206017]
[1736919033414,0.102,97088.0,97079.0,0.206017]
[1736919033742,0.002,97088.0,97079.0,0.206017]
[1736919033957,0.002,97088.0,97080.0,0.10422692]
[1736919034173,0.002,97088.0,97085.0,0.206004]
[1736919034802,0.002,97088.0,97083.0,0.206007]
[1736919035038,0.002,97088.0,97085.0,0.206005]
[1736919035677,0.1,97099.0,97085.0,0.206005]
[1736919035678,0.0009925,97092.0,97085.0,0.206005]
[1736919035893,0.0009925,97092.0,97085.0,0.207005]
[1736919036102,0.002,97088.0,97085.0,0.207005]
[1736919036308,0.0009925,97092.0,97085.0,0.207005]
[1736919036518,0.0009925,97092.0,97085.0,0.206005]
[1736919036707,0.0009925,97092.0,97085.0,0.208005]
[1736919036887,0.0009925,97092.0,97085.0,0.209005]
[1736919037096,0.0009925,97092.0,97085.0,0.003]
[1736919037555,0.1009925,97092.0,97085.0,0.001]
[1736919037796,0.1,97087.0,97085.0,0.001]
[1736919038122,0.1,97088.0,97081.0,0.206012]
[1736919038322,0.1,97087.0,97081.0,0.206012]
[1736919039362,0.1,97087.0,97081.0,0.001]
[1736919040004,0.1,97087.0,97077.0,0.20602]
[1736919040968,0.306002,97087.0,97075.0,0.211826]
[1736919041498,0.306011,97082.0,97081.0,0.001]
[1736919041869,0.306026,97075.0,97066.0,0.09223319]
[1736919043031,0.306026,97075.0,97065.0,0.0008529]
[1736919043455,0.306026,97075.0,97074.0,0.00200239]
[1736919043635,0.306026,97075.0,97074.0,0.00100239]
[1736919043827,0.48651045,97075.0,97074.0,0.00100239]
[1736919045053,0.48651045,97075.0,97074.0,0.00200239]
[1736919045472,0.48651045,97075.0,97074.0,0.00100239]
[1736919045675,0.48651045,97075.0,97074.0,0.00300239]
[1736919046054,0.48750295,97075.0,97074.0,0.00100239]
[1736919046253,0.49050295,97075.0,97074.0,0.00100239]
[1736919046462,0.50665533,97075.0,97074.0,0.00100239]
[1736919047905,0.51856587,97075.0,97074.0,0.00100239]
[1736919048696,0.42697088,97075.0,97074.0,0.00100239]
[1736919048870,0.12014488,97075.0,97074.0,0.00100239]
[1736919049751,0.11714488,97075.0,97074.0,0.00100239]
[1736919050250,0.12014488,97075.0,97074.0,0.00100239]
[1736919050452,0.20284488,97075.0,97074.0,0.00100239]
[1736919050653,0.19984488,97075.0,97074.0,0.00100239]
[1736919050852,0.28263477,97075.0,97074.0,0.00100239]
[1736919051270,0.20084488,97075.0,97074.0,0.00100239]
[1736919052141,0.11714488,97075.0,97074.0,0.00100239]
[1736919052338,0.1009925,97075.0,97074.0,0.00100239]
[1736919052550,0.1039925,97075.0,97074.0,0.00100239]
[1736919054906,0.003,97075.0,97074.0,0.00100239]
[1736919055113,0.003,97075.0,97074.0,0.01238904]
[1736919055308,0.003,97075.0,97074.0,0.11661596]
[1736919056092,0.1,97089.0,97074.0,0.11661596]
[1736919056295,0.1,97089.0,97081.0,0.206012]
[1736919057513,0.1,97092.0,97081.0,0.206012]
[1736919057660,0.1009925,97095.0,97076.0,0.206024]
[1736919057874,0.01614989,97122.0,97087.0,0.0827]
[1736919057875,0.1,97104.0,97087.0,0.0827]
[1736919058076,0.0009925,97102.0,97093.0,0.205986]
[1736919058258,0.1009925,97101.0,97091.0,0.205992]
[1736919058826,0.1009925,97101.0,97089.0,0.02012535]
[1736919058827,0.3069635,97101.0,97088.0,0.205998]
[1736919059222,0.3069635,97101.0,97087.0,0.10422692]
[1736919059380,0.001,97089.0,97087.0,0.10422692]
[1736919059593,0.001,97089.0,97088.0,0.205998]
[1736919060182,0.1,97100.0,97088.0,0.205998]
[1736919060388,0.205975,97099.0,97088.0,0.205998]
[1736919060586,0.1,97100.0,97088.0,0.205998]
[1736919061203,0.1,97100.0,97088.0,0.207998]
[1736919061824,0.1,97100.0,97088.0,0.205998]
[1736919062598,0.1,97100.0,97088.0,0.411996]
[1736919063099,0.1,97100.0,97088.0,0.413996]
[1736919063501,0.1,97100.0,97088.0,0.411996]
[1736919063975,0.102,97100.0,97088.0,0.411996]
[1736919064307,0.1,97100.0,97088.0,0.411996]
[1736919064769,0.101,97100.0,97088.0,0.411996]
[1736919066227,0.101,97100.0,97093.0,0.205986]
[1736919067368,0.1,97100.0,97093.0,0.205986]
[1736919067771,0.1,97100.0,97088.0,0.205998]
[1736919067772,0.101,97100.0,97088.0,0.205998]
[1736919068229,0.101,97100.0,97088.0,0.2068517]
[1736919069769,0.1,97100.0,97088.0,0.2068517]
[1736919070228,0.101,97100.0,97088.0,0.2068517]
[1736919072432,0.021,97100.0,97088.0,0.2068517]
[1736919077409,0.021,97100.0,97091.0,0.205992]
[1736919078509,0.02,97100.0,97091.0,0.205992]
[1736919078822,0.021,97100.0,97091.0,0.205992]
[1736919080494,0.02279299,97100.0,97091.0,0.205992]
[1736919080840,0.02279299,97100.0,97090.0,0.08032456]
[1736919082161,0.02279299,97100.0,97088.0,0.2068517]
[1736919082162,0.205975,97099.0,97088.0,0.2068517]
[1736919082819,0.02,97092.0,97088.0,0.0008537]
[1736919083019,0.0978,97089.0,97088.0,0.0008537]
[1736919083612,0.1217925,97089.0,97088.0,0.0008537]
[1736919084418,0.1017925,97089.0,97088.0,0.0008537]
[1736919084619,0.1227925,97089.0,97088.0,0.0008537]
[1736919084833,0.0997925,97089.0,97088.0,0.0008537]
[1736919085767,0.1027925,97089.0,97088.0,0.0008537]
[1736919085943,0.1017925,97089.0,97088.0,0.0008537]
[1736919086290,0.1027925,97089.0,97088.0,0.0008537]
[1736919089484,0.11894315,97089.0,97088.0,0.0008537]
[1736919093193,0.1027925,97089.0,97088.0,0.0008537]
[1736919097561,0.11894329,97089.0,97088.0,0.0008537]
[1736919101402,0.11795079,97089.0,97088.0,0.0008537]
[1736919101605,0.11894329,97089.0,97088.0,0.0008537]
[1736919103222,0.1027925,97089.0,97088.0,0.0008537]
[1736919104920,0.13174841,97089.0,97088.0,0.0008537]
[1736919107640,0.14789922,97089.0,97088.0,0.0008537]
[1736919108198,0.11894331,97089.0,97088.0,0.0008537]
[1736919111566,0.1027925,97089.0,97088.0,0.0008537]
[1736919115459,0.1257925,97089.0,97088.0,0.0008537]
[1736919116323,0.13674751,97089.0,97088.0,0.0008537]
[1736919117361,0.15289826,97089.0,97088.0,0.0008537]
[1736919119040,0.38986363,97089.0,97088.0,0.0008537]
[1736919119248,0.53986363,97089.0,97088.0,0.0008537]
[1736919119858,0.53886363,97089.0,97088.0,0.0008537]
[1736919120055,0.53586363,97089.0,97088.0,0.0008537]
[1736919120390,0.53686363,97089.0,97088.0,0.0008537]
[1736919120773,0.87597609,97089.0,97088.0,0.0008537]
[1736919121437,0.88197609,97089.0,97088.0,0.0018537]
[1736919121636,1.11145532,97089.0,97088.0,0.0018537]
[1736919121842,1.10545532,97089.0,97088.0,0.0008537]
[1736919122034,1.11145532,97089.0,97088.0,0.0018537]
[1736919122234,1.11345532,97089.0,97088.0,0.0018537]
[1736919122539,1.10745532,97089.0,97088.0,0.0008537]
[1736919122754,1.10545532,97089.0,97088.0,0.0008537]
[1736919122962,1.11445532,97089.0,97088.0,0.0018537]
[1736919123119,1.10130457,97089.0,97088.0,0.0018537]
[1736919124715,0.87182534,97089.0,97088.0,0.0018537]
[1736919127645,0.88797714,97089.0,97088.0,0.0018537]
[1736919129788,0.80383869,97089.0,97088.0,0.0018537]
[1736919131626,0.65383869,97089.0,97088.0,0.0018537]
[1736919132467,0.38925676,97089.0,97088.0,0.0018537]
[1736919132677,0.37310496,97089.0,97088.0,0.0018537]
[1736919133278,0.0329925,97089.0,97088.0,0.0018537]
[1736919133428,0.0299925,97089.0,97088.0,0.0018537]
[1736919134438,0.0529925,97089.0,97088.0,0.0018537]
[1736919134860,0.0439925,97089.0,97088.0,0.0008537]
[1736919135318,0.0469925,97089.0,97088.0,0.0008537]
[1736919135474,0.0489925,97089.0,97088.0,0.0008537]
[1736919135876,0.0469925,97089.0,97088.0,0.0008537]
[1736919138114,0.0439925,97089.0,97088.0,0.0008537]
[1736919138319,0.0469925,97089.0,97088.0,0.0008537]
[1736919139325,0.06314306,97089.0,97088.0,0.0008537]
[1736919141074,0.06014306,97089.0,97088.0,0.0008537]
[1736919141231,0.06214306,97089.0,97088.0,0.0008537]
[1736919142982,0.0459925,97089.0,97088.0,0.0008537]
[1736919145829,0.045,97089.0,97088.0,0.0008537]
[1736919146048,0.0459925,97089.0,97088.0,0.0008537]
[1736919147393,0.06214306,97089.0,97088.0,0.0008537]
[1736919149034,0.06115056,97089.0,97088.0,0.0008537]
[1736919149238,0.06214306,97089.0,97088.0,0.0008537]
[1736919150599,0.06115056,97089.0,97088.0,0.0008537]
[1736919151283,0.06214306,97089.0,97088.0,0.0008537]
[1736919151493,0.06115056,97089.0,97088.0,0.0008537]
[1736919151696,0.06214306,97089.0,97088.0,0.0008537]
[1736919152660,0.0459925,97089.0,97088.0,0.0008537]
[1736919153215,0.045,97089.0,97088.0,0.0008537]
[1736919153409,0.002,97089.0,97088.0,0.0779537]
[1736919154712,0.002,97089.0,97088.0,0.1389373]
[1736919154935,0.002,97089.0,97088.0,0.24316422]
[1736919156101,0.02,97107.0,97089.0,0.205996]
[1736919156349,0.02179277,97110.0,97095.0,0.205982]
[1736919156553,0.02179277,97110.0,97096.0,0.0771]
[1736919156814,0.02179277,97110.0,97090.0,0.18457828]
[1736919156815,0.00179277,97110.0,97097.0,0.51618492]
[1736919156986,0.00179277,97110.0,97099.0,0.205975]
[1736919157131,0.00179277,97110.0,97099.0,0.31020192]
[1736919157487,0.00179277,97110.0,97099.0,0.38730192]
[1736919159357,0.00179277,97110.0,97099.0,0.39030192]
[1736919159560,0.00179277,97110.0,97099.0,0.39230192]
[1736919159862,0.00179277,97110.0,97099.0,0.39030192]
[1736919160219,0.00179277,97110.0,97099.0,0.38730192]
[1736919160395,0.00179277,97110.0,97099.0,0.39230192]
[1736919160920,0.00179277,97110.0,97099.0,0.38730192]
[1736919161581,0.00179277,97110.0,97099.0,0.39030192]
[1736919161803,0.00179277,97110.0,97099.0,0.39530192]
[1736919162222,0.00179277,97110.0,97099.0,0.39230192]
[1736919162423,0.00179277,97110.0,97099.0,0.40325915]
[1736919162618,0.00179277,97110.0,97099.0,0.40625915]
[1736919163585,0.00179277,97110.0,97099.0,0.39825915]
[1736919164080,0.00179277,97110.0,97099.0,0.40325915]
[1736919164686,0.00179277,97110.0,97099.0,0.39825915]
[1736919165069,0.00179277,97110.0,97099.0,0.40625915]
[1736919165497,0.00179277,97110.0,97099.0,0.39825915]
[1736919165909,0.00179277,97110.0,97099.0,0.40125915]
[1736919166384,0.00179277,97110.0,97099.0,0.39825915]
[1736919166572,0.00179277,97110.0,97099.0,0.40125915]
[1736919167017,0.00179277,97110.0,97099.0,0.40625915]
[1736919168256,0.00179277,97110.0,97099.0,0.40125915]
[1736919168813,0.00179277,97110.0,97099.0,0.40625915]
[1736919174046,0.00179277,97110.0,97099.0,0.41205915]
[1736919174816,0.00179277,97110.0,97099.0,0.40625915]
[1736919175038,0.00179277,97110.0,97099.0,0.41205915]
[1736919176522,0.00179277,97110.0,97099.0,0.20608415]
[1736919177521,0.00179277,97110.0,97099.0,0.20308415]
[1736919177722,0.00179277,97110.0,97099.0,0.20008415]
[1736919178308,0.00179277,97110.0,97099.0,0.19808415]
[1736919178510,0.00179277,97110.0,97099.0,0.20008415]
[1736919180052,0.00179277,97110.0,97099.0,0.20308415]
[1736919180857,0.00179277,97110.0,97099.0,0.19808415]
[1736919181016,0.00179277,97110.0,97099.0,0.11718415]
[1736919181218,0.00179277,97110.0,97099.0,0.12298415]
[1736919181658,0.00179277,97110.0,97099.0,0.12098415]
[1736919182016,0.00179277,97110.0,97099.0,0.12298415]
[1736919182359,0.00179277,97110.0,97099.0,0.12598415]
[1736919182518,0.00179277,97110.0,97099.0,0.12298415]
[1736919183107,0.00179277,97110.0,97099.0,0.12698415]
[1736919184441,0.00179277,97110.0,97099.0,0.12583765]
[1736919184649,0.00179277,97110.0,97099.0,0.12883765]
[1736919185257,0.00179277,97110.0,97099.0,0.12483765]
[1736919185700,0.00179277,97110.0,97099.0,0.12883765]
[1736919189159,0.00179277,97110.0,97099.0,0.12483765]
[1736919189676,0.00179277,97110.0,97099.0,0.12883765]
[1736919190676,0.00179277,97110.0,97099.0,0.12483765]
[1736919190891,0.00179277,97110.0,97099.0,0.12183765]
[1736919191337,0.00179277,97110.0,97099.0,0.12483765]
[1736919192317,0.00179277,97110.0,97099.0,0.12883765]
[1736919192750,0.00179277,97110.0,97099.0,0.12483765]
[1736919193150,0.00179277,97110.0,97099.0,0.12883765]
[1736919193573,0.00179277,97110.0,97099.0,0.12483765]
[1736919193769,0.00179277,97110.0,97099.0,0.12883765]
[1736919193969,0.00179277,97110.0,97099.0,0.12583765]
[1736919194195,0.00179277,97110.0,97099.0,0.12483765]
[1736919196029,0.00179277,97110.0,97099.0,0.12883765]
[1736919196324,0.00179277,97110.0,97099.0,0.12483765]
[1736919196685,0.00179277,97110.0,97099.0,0.12883765]
[1736919202106,0.00179277,97110.0,97099.0,0.12303765]
[1736919202332,0.0793,97102.0,97099.0,0.0078535]
[1736919202775,0.0793,97107.0,97099.0,0.0078535]
[1736919203031,0.0793,97107.0,97099.0,0.0038535]
[1736919203483,0.0793,97107.0,97099.0,0.0028535]
[1736919203720,0.0793,97107.0,97099.0,0.0008535]
[1736919203927,0.0793,97107.0,97099.0,0.0028535]
[1736919204136,0.0793,97107.0,97099.0,0.0048535]
[1736919204550,0.0793,97107.0,97099.0,0.0028535]
[1736919204962,0.0793,97107.0,97099.0,0.0048535]
[1736919206487,0.02179277,97110.0,97099.0,0.0048535]
[1736919217244,0.00179277,97110.0,97099.0,0.26011026]
[1736919217357,0.00179277,97110.0,97099.0,0.25908042]
[1736919218101,0.00179277,97110.0,97099.0,0.28729776]
[1736919218545,0.00179277,97110.0,97099.0,0.29129776]
[1736919218788,0.00179277,97110.0,97099.0,0.42964754]
[1736919218983,0.00179277,97110.0,97099.0,0.42764754]
[1736919219185,0.00179277,97110.0,97099.0,0.43364754]
[1736919219390,0.00179277,97110.0,97099.0,0.51374754]
[1736919219739,0.00179277,97110.0,97099.0,0.55986414]
[1736919220272,0.00179277,97110.0,97099.0,0.55786414]
[1736919220675,0.00179277,97110.0,97099.0,0.56086414]
[1736919221056,0.00179277,97110.0,97099.0,0.37639776]
[1736919223203,0.00179277,97110.0,97099.0,0.56186455]
[1736919224226,0.00179277,97110.0,97099.0,0.37639776]
[1736919226636,0.00179277,97110.0,97099.0,0.56180089]
[1736919229690,0.00179277,97110.0,97099.0,0.52958355]
[1736919230481,0.00179277,97110.0,97099.0,0.34418042]
[1736919230883,0.00179277,97110.0,97099.0,0.37635284]
[1736919231477,0.00179277,97110.0,97099.0,0.78205284]
[1736919232189,9.9e-07,97100.0,97099.0,1.39705034]
[1736919232402,9.9e-07,97100.0,97099.0,0.88106034]
[1736919232594,9.9e-07,97100.0,97099.0,0.87506034]
[1736919233137,9.9e-07,97100.0,97099.0,0.88406034]
[1736919233332,9.9e-07,97100.0,97099.0,2.38406034]
[1736919233742,9.9e-07,97100.0,97099.0,2.38106034]
[1736919234144,0.00179277,97110.0,97109.0,0.285954]
[1736919234366,0.00179277,97110.0,97109.0,0.42235334]
[1736919235368,0.00179277,97110.0,97109.0,0.42635334]
[1736919235636,0.00179277,97110.0,97109.0,0.57934252]
[1736919235785,0.00179277,97110.0,97109.0,0.58434252]
[1736919236688,0.00179277,97110.0,97109.0,0.39918092]
[1736919237060,0.00179277,97110.0,97109.0,0.43130814]
[1736919237272,0.00179277,97110.0,97109.0,0.39918092]
[1736919237711,0.00179277,97110.0,97109.0,0.72488092]
[1736919238094,0.00179277,97110.0,97109.0,0.80458092]
[1736919238902,0.00179277,97110.0,97109.0,0.94338455]
[1736919239376,0.00179277,97110.0,97109.0,1.26151574]
[1736919239579,0.00179277,97110.0,97109.0,1.24503402]
[1736919239762,0.00179277,97110.0,97109.0,1.13321574]
[1736919239965,0.00077553,97114.0,97113.0,0.2490075]
[1736919240166,0.00077553,97114.0,97113.0,0.25422692]
[1736919240971,0.08397553,97114.0,97113.0,0.25422692]
[1736919241166,0.0008535,97110.0,97109.0,0.14380363]
[1736919241381,0.0008535,97110.0,97109.0,0.25422692]
[1736919241648,0.00072955,97110.0,97109.0,0.25422692]
[1736919243343,0.00072955,97110.0,97109.0,0.25722692]
[1736919243561,0.00072955,97110.0,97109.0,0.26298692]
[1736919244165,0.00072955,97110.0,97109.0,0.26698692]
[1736919244370,0.00072955,97110.0,97109.0,0.34398692]
[1736919244571,0.00072955,97110.0,97109.0,1.84698692]
[1736919245031,0.00072955,97110.0,97109.0,1.84398692]
[1736919245239,0.00072955,97110.0,97109.0,0.34398692]
[1736919245444,0.00072955,97110.0,97109.0,0.34898692]
[1736919245806,0.00072955,97110.0,97109.0,0.56102324]
[1736919246519,0.00072955,97110.0,97109.0,0.88272324]
[1736919246770,0.00072955,97110.0,97109.0,1.02152687]
[1736919246919,0.00072955,97110.0,97109.0,1.03052687]
[1736919247342,0.00072955,97110.0,97109.0,1.02152687]
[1736919247544,0.00072955,97110.0,97109.0,1.02552687]
[1736919247835,0.00072955,97110.0,97109.0,0.85459442]
[1736919248036,0.00072955,97110.0,97109.0,0.85959442]
[1736919249105,0.00072955,97110.0,97109.0,0.95207733]
[1736919249434,0.00072955,97110.0,97109.0,2.45207733]
[1736919250170,0.00072955,97110.0,97109.0,0.95207733]
[1736919250449,0.00072955,97110.0,97109.0,0.79117733]
[1736919250640,0.00072955,97110.0,97109.0,0.82331535]
[1736919250851,0.00072955,97110.0,97109.0,0.90331535]
[1736919251603,0.00072955,97110.0,97109.0,0.89831535]
[1736919252009,0.00072955,97110.0,97109.0,0.88931535]
[1736919252204,0.00072955,97110.0,97109.0,0.89431535]
[1736919252630,0.00072955,97110.0,97109.0,0.81431535]
[1736919252950,0.00072955,97110.0,97109.0,0.72183244]
[1736919253106,0.00072955,97110.0,97109.0,0.72362458]
[1736919254034,0.00072955,97110.0,97109.0,0.80362458]
[1736919254243,0.00072955,97110.0,97109.0,0.90510749]
[1736919257336,0.00072955,97110.0,97109.0,0.81262458]
[1736919257555,0.00072955,97110.0,97109.0,2.31262458]
[1736919258182,0.00072955,97110.0,97109.0,0.81262458]
[1736919258428,0.00072955,97110.0,97109.0,0.63361708]
[1736919259439,0.00072955,97110.0,97109.0,0.62785708]
[1736919259703,0.12852955,97110.0,97109.0,0.34149214]
[1736919260099,0.12852955,97110.0,97109.0,0.4340391]
[1736919260922,0.12852955,97110.0,97109.0,0.4290391]
[1736919261322,0.12852955,97110.0,97109.0,0.4200391]
[1736919261548,0.12852955,97110.0,97109.0,0.33649214]
[1736919261964,0.12852955,97110.0,97109.0,0.32749214]
[1736919262373,0.12852955,97110.0,97109.0,0.33049214]
[1736919262685,0.12852955,97110.0,97109.0,0.33449214]
[1736919262859,0.12852955,97110.0,97109.0,0.33149214]
[1736919263059,0.12852955,97110.0,97109.0,0.32749214]
[1736919263510,0.12852955,97110.0,97109.0,0.32849214]
[1736919264318,0.12852955,97110.0,97109.0,0.32949214]
[1736919264499,0.12852955,97110.0,97109.0,0.00379214]
[1736919269384,0.12852955,97110.0,97109.0,0.31272214]
[1736919307270,0.00072955,97110.0,97109.0,0.31272214]
[1736919324096,0.15221256,97110.0,97109.0,0.31272214]
[1736919324669,0.62051499,97110.0,97109.0,0.31172214]
[1736919324869,0.63083568,97110.0,97109.0,0.31072214]
[1736919325057,0.73183568,97110.0,97109.0,0.31072214]
[1736919325878,0.2269655,97100.0,97099.0,0.0008535]
[1736919326108,0.248996,97089.0,97088.0,0.0008537]
[1736919326306,0.47602292,97089.0,97088.0,0.00100239]
[1736919326586,0.47701542,97089.0,97088.0,0.00100239]
[1736919327495,1.00230008,97089.0,97088.0,0.00100239]
[1736919328485,1.00330008,97089.0,97088.0,0.00200239]
[1736919328680,1.107527,97089.0,97088.0,0.00200239]
[1736919328908,1.107527,97089.0,97088.0,0.00100239]
[1736919328909,1.106527,97089.0,97088.0,0.00100239]
[1736919329089,0.92231785,97089.0,97088.0,0.00100239]
[1736919330381,0.91104234,97089.0,97088.0,0.00100239]
[1736919331030,0.91204234,97089.0,97088.0,0.00200239]
[1736919331239,0.92240419,97089.0,97088.0,0.00200239]
[1736919331593,0.93855638,97089.0,97088.0,0.00200239]
[1736919331820,0.92240419,97089.0,97088.0,0.00200239]
[1736919332285,0.81817727,97089.0,97088.0,0.00200239]
[1736919332491,0.56815035,97089.0,97088.0,0.00200239]
[1736919332725,0.5577885,97089.0,97088.0,0.00200239]
[1736919333868,0.5567885,97089.0,97088.0,0.00100239]
[1736919334260,0.5577885,97089.0,97088.0,0.00200239]
[1736919334460,0.5567885,97089.0,97088.0,0.00100239]
[1736919334928,0.5577885,97089.0,97088.0,0.00200239]
[1736919336365,0.2279885,97089.0,97088.0,0.00200239]
[1736919337836,0.2269885,97089.0,97088.0,0.00100239]
[1736919338516,0.2279885,97089.0,97088.0,0.00100239]
[1736919338740,0.2269885,97089.0,97088.0,0.00100239]
[1736919338898,0.2279885,97089.0,97088.0,0.00100239]
[1736919339283,0.2289885,97089.0,97088.0,0.00100239]
[1736919339444,0.2279885,97089.0,97088.0,0.00100239]
[1736919339659,0.2269885,97089.0,97088.0,0.00100239]
[1736919339868,0.2279885,97089.0,97088.0,0.00100239]
[1736919340240,0.2269885,97089.0,97088.0,0.00100239]
[1736919340643,0.2279885,97089.0,97088.0,0.00100239]
[1736919340894,0.38137958,97089.0,97088.0,0.00100239]
[1736919341036,0.45867958,97089.0,97088.0,0.00100239]
[1736919341234,0.50677958,97089.0,97088.0,0.00100239]
[1736919341817,0.50677958,97089.0,97055.0,0.3257]
[1736919341818,0.206056,97061.0,97056.0,0.15]
[1736919342015,0.02,97060.0,97056.0,0.15]
[1736919343303,0.02,97060.0,97056.0,0.155]
[1736919343708,0.02,97060.0,97056.0,0.15]
[1736919343915,0.02,97060.0,97056.0,0.151]
[1736919344898,0.02,97060.0,97056.0,0.152]
[1736919345091,0.02,97060.0,97056.0,0.1528538]
[1736919346024,0.02,97060.0,97056.0,0.0028538]
[1736919349168,0.02,97057.0,97056.0,0.0028538]
[1736919350170,0.1001925,97057.0,97056.0,0.0028538]
[1736919350549,0.10024199,97057.0,97056.0,0.0018538]
[1736919350703,0.10024199,97057.0,97056.0,0.0008538]
[1736919350905,0.10024199,97057.0,97056.0,0.0028538]
[1736919351117,0.15373824,97057.0,97056.0,0.0028538]
[1736919351331,0.15373824,97057.0,97056.0,0.0048538]
[1736919352007,0.15373824,97057.0,97056.0,0.0028538]
[1736919352204,0.15473824,97057.0,97056.0,0.0008538]
[1736919352330,0.10124199,97057.0,97056.0,0.0008538]
[1736919352532,0.10224199,97057.0,97056.0,0.0008538]
[1736919352984,0.10124199,97057.0,97056.0,0.0008538]
[1736919353177,0.10224199,97057.0,97056.0,0.0018538]
[1736919355076,0.15698559,97057.0,97056.0,0.0018538]
[1736919358480,0.15598559,97057.0,97056.0,0.0018538]
[1736919358676,0.15598559,97057.0,97056.0,0.0008538]
[1736919358878,0.15698559,97057.0,97056.0,0.0018538]
[1736919359623,0.15598559,97057.0,97056.0,0.0018538]
[1736919359760,0.1711414,97057.0,97056.0,0.0008538]
[1736919360095,0.1731414,97057.0,97056.0,0.0008538]
[1736919362614,0.1173978,97057.0,97056.0,0.0008538]
[1736919362989,0.00204199,97057.0,97056.0,0.0008538]
[1736919363193,0.02204949,97057.0,97056.0,0.0008538]
[1736919364062,0.00204949,97057.0,97056.0,0.0008538]
[1736919364814,0.00104949,97057.0,97056.0,0.0008538]
[1736919364996,0.00204949,97057.0,97056.0,0.0008538]
[1736919365420,0.00304199,97057.0,97056.0,0.0008538]
[1736919365541,0.00104199,97057.0,97056.0,0.0008538]
[1736919366333,0.00204199,97057.0,97056.0,0.0008538]
[1736919366662,0.00204199,97057.0,97056.0,0.0018538]
[1736919366882,0.00104949,97057.0,97056.0,0.0018538]
[1736919367081,4.949e-05,97057.0,97056.0,0.0018538]
[1736919367203,0.02,97059.0,97056.0,0.0018538]
[1736919367820,0.00091798,97057.0,97056.0,0.0018538]
[1736919368118,0.00091798,97057.0,97056.0,0.0008538]
[1736919368588,0.00091798,97057.0,97056.0,0.0018538]
[1736919369058,0.0027116,97057.0,97056.0,0.0018538]
[1736919369280,0.0027116,97057.0,97056.0,0.0008538]
[1736919369666,0.01886631,97057.0,97056.0,0.0008538]
[1736919370022,0.01886631,97057.0,97056.0,0.0018538]
[1736919370394,0.0027116,97057.0,97056.0,0.0018538]
[1736919371995,0.00179362,97057.0,97056.0,0.0018538]
[1736919372215,0.0027116,97057.0,97056.0,0.0018538]
[1736919372559,0.0027116,97057.0,97056.0,0.0008538]
[1736919372899,0.00179362,97057.0,97056.0,0.0008538]
[1736919373109,0.00279362,97057.0,97056.0,0.0008538]
[1736919373549,0.00179362,97057.0,97056.0,0.0008538]
[1736919373729,0.00279362,97057.0,97056.0,0.0785538]
[1736919374301,0.0037116,97057.0,97056.0,0.0785538]
[1736919374509,0.00279362,97057.0,97056.0,0.0785538]
[1736919375837,0.0037116,97057.0,97056.0,0.0785538]
[1736919376909,0.0037116,97057.0,97056.0,0.0008538]
[1736919379676,0.00279362,97057.0,97056.0,0.0008538]
[1736919380263,0.01894807,97057.0,97056.0,0.0008538]
[1736919380512,0.00279362,97057.0,97056.0,0.0008538]
[1736919380914,0.0037116,97057.0,97056.0,0.0008538]
[1736919385593,0.24999498,97051.0,97050.0,0.000853]
[1736919385791,0.3542219,97051.0,97050.0,0.000853]
[1736919386415,0.4352219,97051.0,97050.0,0.000853]
[1736919386938,0.77557422,97051.0,97050.0,0.000853]
[1736919387143,0.87980114,97051.0,97050.0,0.000853]
[1736919387363,0.226121,97030.0,97020.0,0.15]
[1736919387566,0.226121,97030.0,97029.0,0.00091957]
[1736919389342,0.228121,97030.0,97029.0,0.00091957]
[1736919390173,0.002,97030.0,97029.0,0.00091957]
[1736919392336,0.06784646,97030.0,97029.0,0.00091957]
[1736919392544,0.022,97030.0,97029.0,0.00091957]